bitfinex-derivatives/quotes_BTCF0:USTF0_20250922
["timestamp","ask_amount","ask_price","bid_price","bid_amount"]
[1758549962237,1.53703298,113270.0,113260.0,0.001]
[1758549962726,3.39635298,113270.0,113260.0,0.001]
[1758549963338,0.69831298,113270.0,113260.0,0.001]
[1758549963541,3.39643298,113270.0,113260.0,0.001]
[1758549963740,3.41270187,113270.0,113260.0,0.001]
[1758549964838,0.03428,113220.0,113210.0,0.46454982]
[1758549965034,0.55208199,113220.0,113210.0,0.46454982]
[1758549965339,0.87104,113220.0,113210.0,0.46454982]
[1758549965534,0.88714825,113220.0,113210.0,0.46454982]
[1758549965839,0.95890837,113220.0,113210.0,0.46454982]
[1758549966041,0.95994837,113220.0,113210.0,0.47254982]
[1758549966241,1.30267036,113220.0,113210.0,0.47254982]
[1758549966544,0.95594837,113220.0,113210.0,0.4516878]
[1758549966938,0.94906837,113220.0,113210.0,0.4516878]
[1758549967236,0.94906837,113220.0,113210.0,0.4696878]
[1758549968048,0.94910837,113220.0,113210.0,0.4696878]
[1758549968651,0.11026837,113220.0,113210.0,0.4696878]
[1758549968852,0.94910837,113220.0,113210.0,0.4696878]
[1758549969251,0.10926837,113220.0,113210.0,0.4676878]
[1758549969451,0.53962837,113220.0,113210.0,0.4676878]
[1758549969653,0.53962837,113220.0,113210.0,0.4616878]
[1758549969953,0.10926837,113220.0,113210.0,0.4616878]
[1758549970155,0.94814837,113220.0,113210.0,0.4616878]
[1758549970548,0.96102837,113220.0,113210.0,0.4616878]
[1758549970754,0.94814837,113220.0,113210.0,0.4616878]
[1758549971252,0.07176012,113220.0,113210.0,0.4616878]
[1758549971454,0.83888,113220.0,113210.0,0.4616878]
[1758549971655,0.0214,113230.0,113220.0,0.1012122]
[1758549971855,0.0214,113230.0,113220.0,0.4731822]
[1758549972056,0.86028,113230.0,113220.0,0.4731822]
[1758549972447,0.03737182,113230.0,113220.0,0.4731822]
[1758549972654,0.88913182,113230.0,113220.0,0.39393]
[1758549972854,0.88913182,113230.0,113220.0,0.39893]
[1758549973158,0.88913182,113230.0,113220.0,0.38597]
[1758549973854,0.05025182,113230.0,113220.0,0.4742229]
[1758549974059,0.03737182,113230.0,113220.0,0.4870229]
[1758549974359,0.57669182,113230.0,113220.0,0.39877]
[1758549974558,0.57669182,113230.0,113220.0,0.38601]
[1758549974860,0.64733736,113230.0,113220.0,0.38601]
[1758549975054,0.64733736,113230.0,113220.0,0.39877]
[1758549975756,0.64733736,113230.0,113220.0,0.38601]
[1758549976259,0.63449736,113230.0,113220.0,0.4870229]
[1758549976960,0.10801736,113230.0,113220.0,0.4870229]
[1758549977155,0.07064554,113230.0,113220.0,0.7370229]
[1758549977363,0.0001,113230.0,113220.0,1.09650873]
[1758549977562,0.0005,113230.0,113220.0,1.09650873]
[1758549977770,0.0001,113230.0,113220.0,1.09650873]
[1758549978267,0.09170964,113230.0,113220.0,0.4870229]
[1758549978559,0.02177,113230.0,113220.0,0.4870229]
[1758549979160,0.0005,113230.0,113220.0,0.4870229]
[1758549980264,0.0005,113230.0,113220.0,1.09650873]
[1758549981558,0.0001,113230.0,113220.0,1.09650873]
[1758549982159,0.0005,113230.0,113220.0,1.09650873]
[1758549984358,0.0001,113230.0,113220.0,1.09650873]
[1758549984556,0.0005,113230.0,113220.0,1.09650873]
[1758549984957,0.0005,113230.0,113220.0,1.93518873]
[1758549985262,0.0005,113230.0,113220.0,1.09650873]
[1758549985466,0.0005,113230.0,113220.0,0.4870229]
[1758549985760,0.02192,113230.0,113220.0,0.4870229]
[1758549986062,0.03498,113230.0,113220.0,0.4870229]
[1758549986467,0.02192,113230.0,113220.0,0.4870229]
[1758549987959,0.0005,113230.0,113220.0,0.84650873]
[1758549988263,0.0001,113230.0,113220.0,0.84650873]
[1758549988463,0.0005,113230.0,113220.0,0.84650873]
[1758549988763,0.0001,113230.0,113220.0,1.07995595]
[1758549989060,0.0005,113230.0,113220.0,1.07995595]
[1758549989857,0.0005,113230.0,113220.0,1.91851595]
[1758549990560,0.0005,113230.0,113220.0,1.93479517]
[1758549991854,0.02524417,113270.0,113260.0,0.0882175]
[1758549992161,0.70936417,113270.0,113260.0,0.1097575]
[1758549992665,0.02524417,113270.0,113260.0,0.1097575]
[1758549992964,0.73972373,113270.0,113260.0,0.1097575]
[1758549993166,0.74172373,113270.0,113260.0,0.1097575]
[1758549993661,0.81054492,113270.0,113260.0,0.02154]
[1758549993864,0.81054492,113270.0,113260.0,0.1097575]
[1758549994260,0.11238492,113270.0,113260.0,0.4730975]
[1758549994463,0.11278492,113270.0,113260.0,0.4530975]
[1758549994657,0.94736075,113270.0,113260.0,0.4530975]
[1758549994863,0.94696075,113270.0,113260.0,0.1230975]
[1758549995063,0.94736075,113270.0,113260.0,0.4730975]
[1758549998264,0.10896075,113270.0,113260.0,0.4730975]
[1758549998467,0.94528075,113270.0,113260.0,0.4730975]
[1758549998768,0.94520075,113270.0,113260.0,0.4730975]
[1758549999269,0.09064119,113270.0,113260.0,0.4730975]
[1758549999472,0.41120119,113270.0,113260.0,0.4730975]
[1758549999667,0.92884119,113270.0,113260.0,0.4730975]
[1758549999868,0.92884119,113270.0,113260.0,0.1230975]
[1758550000069,0.94190119,113270.0,113260.0,0.02154]
[1758550000366,0.03448,113260.0,113250.0,0.13053675]
[1758550000669,0.03448,113260.0,113250.0,0.42053675]
[1758550001666,0.03448,113260.0,113250.0,0.42153675]
[1758550002670,0.03448,113260.0,113250.0,0.31254]
[1758550002867,0.03448,113260.0,113250.0,0.4007654]
[1758550004474,0.03448,113260.0,113250.0,0.3997654]
[1758550005274,0.03448,113260.0,113250.0,0.29]
[1758550005572,0.03448,113260.0,113250.0,0.3782269]
[1758550005771,0.03448,113260.0,113250.0,0.29]
[1758550005979,0.03448,113260.0,113250.0,0.3782269]
[1758550006269,0.03448,113260.0,113250.0,0.29]
[1758550006666,0.64369227,113260.0,113250.0,0.02]
[1758550006876,0.28448,113260.0,113250.0,0.02]
[1758550007067,0.28448,113260.0,113250.0,0.1297669]
[1758550007272,0.87248,113260.0,113250.0,0.1297669]
[1758550007469,0.87288,113260.0,113250.0,0.1297669]
[1758550007669,0.87288,113260.0,113250.0,0.04154]
[1758550008573,0.87288,113260.0,113250.0,0.129767]
[1758550008775,0.03488,113260.0,113250.0,0.129767]
[1758550008971,0.02182,113260.0,113250.0,0.143107]
[1758550009576,0.27798,113260.0,113250.0,0.143107]
[1758550009873,0.27798,113260.0,113250.0,0.343107]
[1758550010174,0.85942,113260.0,113250.0,0.343107]
[1758550010370,0.85978,113260.0,113250.0,0.343107]
[1758550010564,0.85988,113260.0,113250.0,0.60023219]
[1758550010770,0.83806,113260.0,113250.0,0.60023219]
[1758550010971,0.83846,113260.0,113250.0,0.60023219]
[1758550011270,0.83806,113260.0,113250.0,1.10735738]
[1758550011465,0.0005,113260.0,113250.0,1.10735738]
[1758550012176,0.0005,113260.0,113250.0,0.593107]
[1758550012473,0.0005,113260.0,113250.0,1.10735738]
[1758550012768,0.0001,113260.0,113250.0,1.10735738]
[1758550013074,0.0005,113260.0,113250.0,1.10735738]
[1758550013271,0.0001,113260.0,113250.0,1.10735738]
[1758550013475,0.0005,113260.0,113250.0,1.10735738]
[1758550013675,0.0005,113260.0,113250.0,1.12202155]
[1758550014475,0.0005,113260.0,113250.0,1.12402155]
[1758550014778,0.0005,113260.0,113250.0,1.10935738]
[1758550015169,0.0005,113260.0,113250.0,1.11235738]
[1758550016072,0.07268438,113280.0,113260.0,0.0882183]
[1758550016276,0.07188438,113280.0,113270.0,0.38047649]
[1758550016478,0.22466161,113290.0,113280.0,0.1233436]
[1758550016677,0.22466161,113290.0,113280.0,0.38046879]
[1758550016876,0.4817868,113290.0,113280.0,0.43046879]
[1758550017074,0.4817868,113290.0,113280.0,0.38046879]
[1758550017670,0.3114268,113290.0,113280.0,0.46046879]
[1758550017866,0.01797056,113290.0,113280.0,1.21471917]
[1758550018071,0.0008,113300.0,113290.0,0.1233358]
[1758550018274,0.71018,113310.0,113300.0,0.123328]
[1758550018474,0.71018,113310.0,113300.0,0.72045319]
[1758550018769,0.02186,113310.0,113300.0,0.97757838]
[1758550018977,0.0004,113310.0,113300.0,0.97757838]
[1758550019275,0.43384402,113310.0,113300.0,0.97757838]
[1758550019574,0.37716472,113310.0,113300.0,0.97757838]
[1758550019977,0.39902472,113310.0,113300.0,0.463328]
[1758550020176,0.01540472,113310.0,113300.0,0.97757838]
[1758550020371,0.0004,113310.0,113300.0,0.97757838]
[1758550020570,0.0004,113310.0,113300.0,0.463328]
[1758550020777,0.74250519,113330.0,113320.0,0.1233125]
[1758550020973,0.74330519,113330.0,113320.0,0.1233125]
[1758550021178,0.75662519,113330.0,113320.0,0.1107025]
[1758550021578,0.77170388,113330.0,113320.0,0.1107025]
[1758550022075,0.77970388,113330.0,113320.0,0.36882769]
[1758550022578,0.77970388,113330.0,113320.0,0.1117025]
[1758550022780,0.88333869,113330.0,113320.0,0.38143769]
[1758550023075,1.15378388,113330.0,113320.0,0.36882769]
[1758550023282,1.15378388,113330.0,113320.0,0.48143769]
[1758550023575,1.15378388,113330.0,113320.0,0.38143769]
[1758550023576,1.22603151,113330.0,113320.0,0.38143769]
[1758550024077,1.22603151,113330.0,113320.0,0.48143769]
[1758550024379,1.22603151,113330.0,113320.0,0.85856288]
[1758550024380,0.11798632,113330.0,113320.0,0.85856288]
[1758550024579,0.95554632,113330.0,113320.0,0.57143769]
[1758550024781,0.95554632,113330.0,113320.0,0.1243125]
[1758550025080,0.95554632,113330.0,113320.0,0.38143769]
[1758550025379,1.21267151,113330.0,113320.0,0.38143769]
[1758550025571,1.21267151,113330.0,113320.0,0.1243125]
[1758550025772,1.22599151,113330.0,113320.0,0.1117025]
[1758550025972,1.22599151,113330.0,113320.0,0.001]
[1758550026274,1.22591151,113330.0,113320.0,0.36882769]
[1758550026579,0.95546632,113330.0,113320.0,0.91856288]
[1758550026777,0.11718632,113330.0,113320.0,0.91856288]
[1758550027082,0.61336632,113330.0,113320.0,0.91856288]
[1758550027383,0.61376632,113330.0,113320.0,0.91856288]
[1758550027575,0.61336632,113330.0,113320.0,0.91856288]
[1758550027768,0.63562632,113330.0,113320.0,0.91856288]
[1758550028173,0.63262632,113330.0,113320.0,0.91756288]
[1758550028670,0.61076632,113330.0,113320.0,0.91756288]
[1758550029073,0.63262632,113330.0,113320.0,0.4033125]
[1758550029271,0.63262632,113330.0,113320.0,0.91756288]
[1758550030179,0.0054,113330.0,113320.0,0.91756288]
[1758550030577,0.02726,113330.0,113320.0,0.91756288]
[1758550030784,0.02686,113330.0,113320.0,0.91756288]
[1758550030985,0.02726,113330.0,113320.0,0.91756288]
[1758550032274,0.04235541,113330.0,113320.0,0.91756288]
[1758550034287,0.04235541,113330.0,113320.0,0.4033125]
[1758550034485,0.04235541,113330.0,113320.0,0.91756288]
[1758550035185,0.02049541,113330.0,113320.0,0.91756288]
[1758550035385,0.02059541,113330.0,113320.0,0.91756288]
[1758550035690,0.04192541,113330.0,113320.0,0.91756288]
[1758550035879,0.05516541,113330.0,113320.0,0.39043769]
[1758550036193,0.5622906,113330.0,113310.0,0.37819384]
[1758550036386,0.29169519,113320.0,113310.0,0.72932384]
[1758550036690,0.29179519,113320.0,113310.0,0.71661384]
[1758550036881,0.03467,113320.0,113310.0,0.71661384]
[1758550037081,0.02143,113320.0,113310.0,0.72958384]
[1758550037278,0.02143,113320.0,113310.0,0.47245865]
[1758550037486,0.02143,113320.0,113310.0,0.72958384]
[1758550039003,0.02543,113320.0,113310.0,0.72958384]
[1758550040283,0.02543,113320.0,113310.0,0.47245865]
[1758550040490,0.29579519,113320.0,113310.0,0.45948865]
[1758550040695,0.29579519,113320.0,113310.0,0.71661384]
[1758550040891,0.03867,113320.0,113310.0,0.71661384]
[1758550041085,0.29579519,113320.0,113310.0,0.71661384]
[1758550041590,0.03867,113320.0,113310.0,0.71661384]
[1758550041789,0.88059,113320.0,113310.0,0.72958384]
[1758550042989,0.88059,113320.0,113310.0,0.47245865]
[1758550043293,1.13771519,113320.0,113310.0,0.72958384]
[1758550043494,1.13771519,113320.0,113310.0,0.47245865]
[1758550043691,1.13771519,113320.0,113310.0,0.45948865]
[1758550043891,0.03867,113320.0,113310.0,0.71661384]
[1758550044086,0.80711519,113320.0,113310.0,0.73031384]
[1758550044580,0.80711519,113320.0,113310.0,0.45948865]
[1758550044783,0.80711519,113320.0,113310.0,0.71661384]
[1758550044980,0.80711519,113320.0,113310.0,0.37132445]
[1758550044981,1.06424038,113320.0,113310.0,0.37132445]
[1758550045184,1.31424038,113320.0,113310.0,0.35019445]
[1758550046503,1.31424038,113320.0,113310.0,0.46001685]
[1758550046997,0.54579519,113320.0,113310.0,0.46001685]
[1758550047195,1.38655519,113320.0,113310.0,0.71714204]
[1758550047496,0.54579519,113320.0,113310.0,0.46001685]
[1758550047685,1.38607519,113320.0,113310.0,0.33]
[1758550047884,1.91840886,113320.0,113300.0,0.0001]
[1758550048093,0.54851038,113310.0,113300.0,0.1101]
[1758550048289,0.54861038,113310.0,113300.0,0.11]
[1758550048496,0.79861038,113310.0,113300.0,0.11]
[1758550048695,0.03426,113300.0,113290.0,0.0001]
[1758550048885,1.63861038,113300.0,113290.0,0.33]
[1758550049093,1.63877038,113300.0,113290.0,0.33]
[1758550049402,0.03426,113290.0,113280.0,0.0001]
[1758550049590,0.03426,113280.0,113270.0,0.07249]
[1758550049789,0.54861038,113280.0,113270.0,0.42239]
[1758550050285,0.86890018,113280.0,113270.0,0.42239]
[1758550050493,3.57010018,113280.0,113270.0,0.16]
[1758550050790,3.45770026,113280.0,113260.0,0.0001]
[1758550051097,0.43611046,113270.0,113260.0,0.3401]
[1758550051290,0.43621046,113270.0,113250.0,0.0001]
[1758550051493,1.27411046,113260.0,113250.0,0.3001]
[1758550051694,0.43621046,113260.0,113250.0,0.3]
[1758550051894,1.27821046,113260.0,113250.0,0.3]
[1758550052597,0.43621046,113260.0,113250.0,0.3]
[1758550052792,1.27813046,113260.0,113250.0,0.302]
[1758550052992,1.27789046,113260.0,113250.0,0.32365]
[1758550053297,0.43621046,113260.0,113250.0,0.302]
[1758550053495,1.27777046,113260.0,113250.0,0.302]
[1758550053792,1.27773046,113260.0,113250.0,0.102]
[1758550054299,1.27777046,113260.0,113250.0,0.102]
[1758550054997,1.29279414,113260.0,113250.0,0.102]
[1758550055499,0.45131414,113260.0,113250.0,0.102]
[1758550055697,1.29247414,113260.0,113250.0,0.102]
[1758550055997,1.29239414,113260.0,113250.0,0.102]
[1758550056299,0.45131414,113260.0,113250.0,0.102]
[1758550056602,0.45131414,113260.0,113250.0,0.1902191]
[1758550056794,1.07467414,113260.0,113250.0,0.2118691]
[1758550057198,0.04946368,113260.0,113250.0,0.2118691]
[1758550057391,0.03679368,113260.0,113250.0,0.6655691]
[1758550057592,0.56781,113260.0,113250.0,0.6645691]
[1758550057788,0.56821,113260.0,113250.0,0.6645691]
[1758550058002,0.86349,113260.0,113250.0,0.6645691]
[1758550058402,0.86449,113260.0,113250.0,0.6635691]
[1758550059006,0.86349,113260.0,113250.0,0.6635691]
[1758550059200,0.87840211,113260.0,113250.0,0.6645691]
[1758550059498,0.87840211,113260.0,113250.0,0.4145691]
[1758550061499,1.29292257,113260.0,113250.0,0.111]
[1758550061701,1.29292257,113260.0,113250.0,0.1992191]
[1758550062100,1.29292257,113260.0,113250.0,0.2208691]
[1758550062401,1.29292257,113260.0,113250.0,0.2198691]
[1758550062605,1.29292257,113260.0,113250.0,0.2208691]
[1758550062805,1.29292257,113260.0,113250.0,0.13265]
[1758550062998,1.29292257,113260.0,113250.0,0.2208692]
[1758550063304,1.29292257,113260.0,113250.0,0.111]
[1758550063699,1.54292257,113260.0,113250.0,0.111]
[1758550064205,1.54392257,113260.0,113250.0,0.11]
[1758550065107,0.70220257,113260.0,113250.0,0.1982191]
[1758550065406,1.29204257,113260.0,113250.0,0.2198691]
[1758550065595,1.29244257,113260.0,113250.0,0.11]
[1758550065801,1.29204257,113260.0,113250.0,0.11]
[1758550066005,1.29244257,113260.0,113250.0,0.11]
[1758550066505,0.45220257,113260.0,113250.0,0.2198692]
[1758550067005,1.18504257,113260.0,113250.0,0.2198692]
[1758550067405,1.18504257,113260.0,113250.0,0.1982192]
[1758550067804,0.45220257,113260.0,113250.0,0.2198692]
[1758550068006,1.29176257,113260.0,113250.0,0.2198692]
[1758550068206,0.45220257,113260.0,113250.0,0.2198692]
[1758550068395,0.89023211,113260.0,113250.0,0.2198692]
[1758550068705,0.88983211,113260.0,113250.0,0.2198692]
[1758550068907,1.29168257,113260.0,113250.0,0.2198692]
[1758550069110,0.45180257,113260.0,113250.0,0.2198692]
[1758550069409,0.78015211,113260.0,113250.0,0.2335692]
[1758550069799,0.04995211,113260.0,113250.0,0.2335692]
[1758550070005,0.88983211,113260.0,113250.0,0.2335692]
[1758550070407,0.88943211,113260.0,113250.0,0.2198692]
[1758550070606,0.88983211,113260.0,113250.0,0.2198692]
[1758550070913,1.29168257,113260.0,113250.0,0.11]
[1758550071114,1.54168257,113260.0,113250.0,0.11]
[1758550071616,1.54168257,113260.0,113250.0,0.2198693]
[1758550072406,1.54168257,113260.0,113250.0,0.1982193]
[1758550072607,1.23254789,113260.0,113250.0,0.2198693]
[1758550073312,0.88919211,113260.0,113250.0,0.2198693]
[1758550073512,1.23254789,113260.0,113250.0,0.2198693]
[1758550073811,1.23166789,113260.0,113250.0,0.2198693]
[1758550074112,1.23206789,113260.0,113250.0,0.1982193]
[1758550074807,0.05035211,113260.0,113250.0,0.4842393]
[1758550075007,0.61464211,113260.0,113250.0,0.4842393]
[1758550075201,0.95719789,113260.0,113250.0,0.4842393]
[1758550075714,0.95759789,113260.0,113250.0,0.4842393]
[1758550076010,0.02309,113260.0,113250.0,1.03719508]
[1758550076208,0.08844679,113280.0,113260.0,0.0882102]
[1758550076414,0.11083679,113280.0,113270.0,0.1242237]
[1758550076714,0.94083062,113280.0,113270.0,0.4442237]
[1758550077118,0.94123062,113280.0,113270.0,0.4442237]
[1758550077612,1.3184164,113280.0,113270.0,0.1104837]
[1758550077917,1.3224164,113280.0,113270.0,0.0882037]
[1758550078311,1.43247184,113280.0,113270.0,0.04053239]
[1758550078515,1.42847184,113280.0,113270.0,0.04053239]
[1758550078710,1.42847184,113280.0,113260.0,0.0882102]
[1758550078912,0.37718578,113270.0,113260.0,0.1982045]
[1758550079216,0.40804167,113270.0,113260.0,0.1982045]
[1758550079618,0.47142681,113270.0,113260.0,0.2204845]
[1758550079817,0.37718578,113270.0,113260.0,0.2234845]
[1758550080119,0.47104457,113270.0,113260.0,0.2234845]
[1758550080810,0.40765988,113270.0,113260.0,0.2244845]
[1758550081318,0.40965988,113270.0,113260.0,0.1114845]
[1758550081512,0.40965988,113270.0,113260.0,0.0892045]
[1758550081712,0.73885943,113270.0,113260.0,0.0892116]
[1758550081917,0.65965988,113270.0,113260.0,0.0892116]
[1758550082115,0.01264,113260.0,113250.0,0.088214]
[1758550082411,0.01264,113260.0,113250.0,0.430494]
[1758550082412,1.32517241,113260.0,113250.0,0.430494]
[1758550083718,1.32517241,113260.0,113250.0,0.502894]
[1758550084518,1.32717241,113260.0,113250.0,0.502894]
[1758550085021,1.32717241,113260.0,113250.0,0.480614]
[1758550085525,1.57717241,113260.0,113250.0,0.4806194]
[1758550086521,1.57717241,113260.0,113250.0,0.3924]
[1758550086822,1.49793988,113260.0,113250.0,0.3924]
[1758550087124,1.49793988,113260.0,113250.0,0.4806194]
[1758550087310,0.73890806,113260.0,113250.0,0.4806194]
[1758550087510,1.57718806,113260.0,113250.0,0.4806194]
[1758550087714,0.65965988,113260.0,113250.0,0.4806194]
[1758550087921,1.57718806,113260.0,113250.0,0.4806194]
[1758550088321,0.73890806,113260.0,113250.0,0.4806194]
[1758550088621,1.57518806,113260.0,113250.0,0.4806194]
[1758550088925,1.58418806,113260.0,113250.0,0.40909369]
[1758550089227,0.74590806,113260.0,113250.0,0.40909369]
[1758550089420,1.50493988,113260.0,113250.0,0.40909369]
[1758550089616,1.50493988,113260.0,113250.0,0.43137369]
[1758550089816,1.50593988,113260.0,113250.0,0.43137369]
[1758550090421,1.50593988,113260.0,113250.0,0.40909369]
[1758550090629,1.50793988,113260.0,113250.0,0.32087429]
[1758550091728,1.50793988,113260.0,113250.0,0.40909369]
[1758550092026,1.33718806,113260.0,113250.0,0.32087429]
[1758550092217,0.01264,113240.0,113230.0,0.08823]
[1758550092522,1.24593988,113240.0,113230.0,0.41823]
[1758550092918,1.24593988,113240.0,113230.0,0.33]
[1758550093426,1.30933706,113240.0,113230.0,0.33]
[1758550094327,1.24593988,113240.0,113230.0,0.418235]
[1758550094525,0.01264,113230.0,113220.0,4e-05]
[1758550094725,0.47105544,113230.0,113220.0,4e-05]
[1758550094922,0.47105544,113230.0,113210.0,0.116871]
[1758550094923,0.03423,113220.0,113210.0,0.116871]
[1758550095131,0.5400307,113220.0,113210.0,0.426771]
[1758550095426,1.3783107,113220.0,113210.0,0.426771]
[1758550095931,1.31491281,113220.0,113210.0,0.3162444]
[1758550096124,0.47663281,113220.0,113210.0,0.407495]
[1758550096329,0.55379354,113220.0,113210.0,0.429965]
[1758550096625,1.39207354,113220.0,113210.0,0.429965]
[1758550097020,1.39207354,113220.0,113210.0,0.407495]
[1758550097530,0.55379354,113220.0,113210.0,0.408495]
[1758550097729,1.64211354,113220.0,113210.0,0.0102444]
[1758550098029,1.64211354,113220.0,113200.0,0.07257]
[1758550098030,0.03587,113210.0,113200.0,0.07257]
[1758550098234,1.08151301,113210.0,113200.0,0.39247]
[1758550098426,1.00235566,113210.0,113200.0,0.07247]
[1758550098628,0.01389,113200.0,113190.0,0.0001]
[1758550098825,1.66981892,113200.0,113190.0,0.3]
[1758550099129,1.59067566,113200.0,113190.0,0.3]
[1758550099330,1.58367566,113200.0,113190.0,0.3]
[1758550099531,1.90977892,113200.0,113190.0,0.3]
[1758550099725,1.83067566,113200.0,113190.0,0.3]
[1758550100229,3.69087566,113200.0,113190.0,0.304]
[1758550100631,3.36471527,113200.0,113190.0,0.004]
[1758550101033,3.36471527,113200.0,113190.0,0.005]
[1758550101525,0.01389,113190.0,113180.0,0.06401]
[1758550101721,0.01389,113190.0,113180.0,0.23381]
[1758550101722,0.48934475,113190.0,113180.0,0.23381]
[1758550101925,1.20562475,113190.0,113180.0,0.322084]
[1758550102129,0.12959358,113190.0,113180.0,0.344554]
[1758550102326,0.0668441,113190.0,113180.0,0.26985]
[1758550102531,0.0668441,113190.0,113180.0,0.358124]
[1758550102736,0.6837641,113190.0,113180.0,0.358124]
[1758550102921,0.6837641,113190.0,113180.0,0.359124]
[1758550103123,0.11717406,113190.0,113180.0,0.359124]
[1758550103324,0.77789406,113190.0,113180.0,0.359124]
[1758550104032,0.77789406,113190.0,113180.0,0.345554]
[1758550104234,1.13764523,113190.0,113180.0,0.345554]
[1758550104431,1.13764523,113190.0,113180.0,0.23481]
[1758550104640,1.09031527,113190.0,113180.0,0.23481]
[1758550105530,3.17590641,113190.0,113180.0,0.23481]
[1758550105737,3.19388504,113190.0,113180.0,0.23481]
[1758550106638,0.49484504,113190.0,113180.0,0.23481]
[1758550106837,1.12936504,113190.0,113180.0,0.23481]
[1758550107540,0.13509387,113190.0,113180.0,0.3455339]
[1758550107837,0.76961387,113190.0,113180.0,0.3584739]
[1758550108038,0.95745158,113190.0,113180.0,0.3584739]
[1758550108241,1.2856939,113190.0,113180.0,0.3584739]
[1758550108440,1.2856939,113190.0,113180.0,0.3230839]
[1758550108640,1.31760275,113190.0,113180.0,0.3230839]
[1758550108837,1.31720275,113190.0,113180.0,0.3455339]
[1758550109038,1.31760275,113190.0,113180.0,0.3455339]
[1758550109240,1.2860939,113190.0,113180.0,0.3455339]
[1758550109440,1.31760275,113190.0,113180.0,0.3455339]
[1758550109935,0.46110412,113190.0,113180.0,0.3455339]
[1758550110138,1.26811527,113190.0,113180.0,0.3584739]
[1758550110945,1.26811527,113190.0,113180.0,0.3455339]
[1758550111143,1.29962412,113190.0,113180.0,0.3455339]
[1758550112846,0.46110412,113190.0,113180.0,0.3455339]
[1758550113145,0.98930412,113190.0,113180.0,0.3455339]
[1758550114645,1.02094475,113190.0,113180.0,0.23481]
[1758550114949,1.28689853,113190.0,113180.0,0.23481]
[1758550115246,1.28689853,113190.0,113180.0,0.18709459]
[1758550115744,1.25642443,113190.0,113180.0,0.18709459]
[1758550115940,1.3045836,113190.0,113180.0,0.01709459]
[1758550116547,1.3045836,113190.0,113180.0,0.10536849]
[1758550116945,1.3045836,113190.0,113180.0,0.01709459]
[1758550117847,0.39576117,113180.0,113170.0,0.0002]
[1758550118043,1.34401683,113180.0,113170.0,0.3]
[1758550118248,1.26491357,113180.0,113170.0,0.3]
[1758550118650,1.34401683,113180.0,113170.0,0.3]
[1758550119142,0.50557683,113180.0,113170.0,0.302]
[1758550119341,1.25993683,113180.0,113170.0,0.304]
[1758550120448,1.33089601,113180.0,113170.0,0.304]
[1758550121248,1.33089601,113180.0,113170.0,0.3322322]
[1758550121249,1.03942276,113180.0,113170.0,0.3322322]
[1758550121445,1.39917393,113180.0,113170.0,0.3322322]
[1758550121951,1.39957393,113180.0,113170.0,0.3322322]
[1758550122249,1.39957393,113180.0,113170.0,0.3192922]
[1758550122645,1.38328497,113180.0,113170.0,0.3192922]
[1758550123448,1.38328497,113180.0,113170.0,0.2085605]
[1758550123649,1.32002379,113180.0,113170.0,0.2085605]
[1758550123851,1.43090317,113180.0,113170.0,0.2085605]
[1758550124149,1.43090317,113180.0,113170.0,0.014]
[1758550124450,3.29194317,113180.0,113170.0,0.014]
[1758550124749,1.43082317,113180.0,113170.0,0.014]
[1758550125049,1.31994379,113180.0,113170.0,0.014]
[1758550125853,1.39920084,113180.0,113170.0,0.014]
[1758550126247,3.26036084,113180.0,113170.0,0.014]
[1758550126550,0.56080084,113180.0,113170.0,0.014]
[1758550126954,1.39920084,113180.0,113170.0,0.1022817]
[1758550127440,0.21733863,113180.0,113170.0,0.1247317]
[1758550127646,1.15422379,113180.0,113170.0,0.31381404]
[1758550127842,0.59202317,113180.0,113170.0,0.42454574]
[1758550128049,1.51010288,113180.0,113170.0,0.42454574]
[1758550128250,1.31950379,113180.0,113170.0,0.42454574]
[1758550128440,1.3992235,113180.0,113170.0,0.42454574]
[1758550128951,1.05580129,113180.0,113170.0,0.43278574]
[1758550129145,1.03994291,113180.0,113170.0,0.43278574]
[1758550129341,1.03954291,113180.0,113170.0,0.43278574]
[1758550129650,1.38340512,113180.0,113170.0,0.43278574]
[1758550132651,1.29745838,113180.0,113170.0,0.43278574]
[1758550132849,1.55497385,113180.0,113170.0,0.43278574]
[1758550133052,1.55497385,113180.0,113170.0,0.42454574]
[1758550133552,1.52769848,113180.0,113170.0,0.2107317]
[1758550134355,1.52769848,113180.0,113170.0,0.2107717]
[1758550134548,1.59115981,113180.0,113170.0,0.2107717]
[1758550135654,1.59215981,113180.0,113170.0,0.2107717]
[1758550136051,1.59815981,113180.0,113170.0,0.2107717]
[1758550136349,1.53469848,113180.0,113170.0,0.2107717]
[1758550137051,1.01966754,113180.0,113170.0,0.2107717]
[1758550137254,1.53449848,113180.0,113170.0,0.4407717]
[1758550138150,1.58209177,113180.0,113170.0,0.4407717]
[1758550138753,1.58209177,113180.0,113170.0,0.2107717]
[1758550138954,1.53449848,113180.0,113170.0,0.2107717]
[1758550139256,1.58209375,113180.0,113170.0,0.2107717]
[1758550142256,0.45667751,113180.0,113170.0,0.70122717]
[1758550142662,1.00101608,113180.0,113170.0,0.95122717]
[1758550142863,1.25813155,113180.0,113170.0,0.95122717]
[1758550143163,1.25853155,113180.0,113170.0,0.95122717]
[1758550143458,0.10907158,113180.0,113170.0,0.95122717]
[1758550143854,0.10580241,113180.0,113170.0,0.95122717]
[1758550144063,0.10620241,113180.0,113170.0,0.95122717]
[1758550144263,0.10580241,113180.0,113170.0,0.95122717]
[1758550144464,0.10620241,113180.0,113170.0,0.95122717]
[1758550144661,0.04827188,113180.0,113170.0,1.20874264]
[1758550144864,0.52544997,113200.0,113190.0,0.122436]
[1758550145065,0.59017099,113200.0,113190.0,0.71995147]
[1758550145265,0.32143649,113200.0,113190.0,0.71995147]
[1758550145470,1.15983649,113200.0,113190.0,0.71995147]
[1758550145671,0.90232102,113200.0,113190.0,0.71995147]
[1758550145874,0.90232102,113200.0,113190.0,0.96995147]
[1758550146068,0.91532102,113200.0,113190.0,0.96995147]
[1758550146466,0.91528102,113200.0,113190.0,0.96995147]
[1758550146863,0.04113506,113200.0,113190.0,0.96995147]
[1758550147070,0.04513506,113200.0,113190.0,0.96995147]
[1758550147267,0.01821552,113200.0,113190.0,0.96995147]
[1758550147470,0.01861552,113200.0,113190.0,2.06538694]
[1758550147667,0.08349147,113220.0,113210.0,0.1224205]
[1758550147867,0.55718062,113220.0,113210.0,0.71993597]
[1758550148172,0.55798062,113220.0,113210.0,0.4624205]
[1758550148365,0.82818609,113220.0,113210.0,0.4494805]
[1758550148565,0.82818609,113220.0,113210.0,0.1094805]
[1758550148566,1.07818609,113220.0,113210.0,0.1094805]
[1758550148770,1.09118609,113220.0,113210.0,0.1094805]